bitfinex-derivatives/quotes_BTCF0:USTF0_20241125
["timestamp","ask_amount","ask_price","bid_price","bid_amount"]
[1732574164645,0.32393132,93080.0,93079.0,0.08761644]
[1732574165142,0.235712,93104.0,93079.0,0.08761644]
[1732574165143,0.3608,93100.0,93091.0,0.053719]
[1732574165548,0.053722,93086.0,93085.0,0.053721]
[1732574165746,0.053722,93086.0,93079.0,0.03389044]
[1732574165952,0.053723,93085.0,93084.0,0.053722]
[1732574166142,0.05372,93089.0,93080.0,0.053725]
[1732574166341,0.053722,93086.0,93085.0,0.053722]
[1732574166548,0.053719,93090.0,93089.0,0.053719]
[1732574166748,0.37345605,93092.0,93079.0,0.03389044]
[1732574166943,0.37345605,93092.0,93091.0,0.053719]
[1732574167152,0.01265605,93092.0,93091.0,0.053719]
[1732574167363,0.3608,93100.0,93085.0,0.053721]
[1732574167556,0.37395017,93100.0,93079.0,0.03389044]
[1732574167742,0.05372,93089.0,93080.0,0.182]
[1732574168045,0.3608,93092.0,93080.0,0.182]
[1732574168250,0.3608,93092.0,93086.0,0.053721]
[1732574168444,0.3608,93091.0,93079.0,0.03389044]
[1732574168642,0.3608,93080.0,93079.0,0.03389044]
[1732574169255,0.414514,93099.0,93079.0,0.35621044]
[1732574169441,0.3608,93099.0,93098.0,0.053715]
[1732574169642,0.01304696,93108.0,93094.0,0.182]
[1732574169841,0.053715,93098.0,93079.0,0.03389044]
[1732574170044,0.053721,93087.0,93085.0,0.053722]
[1732574170249,0.3608,93100.0,93079.0,0.03389044]
[1732574170250,0.053716,93096.0,93079.0,0.03389044]
[1732574170650,0.053717,93095.0,93079.0,0.03389044]
[1732574170850,0.414514,93100.0,93083.0,0.3608]
[1732574171042,0.3608,93100.0,93090.0,0.11081202]
[1732574171245,0.053715,93098.0,93092.0,0.053718]
[1732574171444,0.3608,93100.0,93098.0,0.053715]
[1732574172055,0.41511201,93104.0,93098.0,0.053715]
[1732574172252,0.414512,93104.0,93098.0,0.053715]
[1732574172556,0.053713,93102.0,93099.0,0.053714]
[1732574172855,0.053713,93102.0,93088.0,0.11081202]
[1732574172856,0.01289026,93109.0,93107.0,0.053709]
[1732574173157,0.18361207,93118.0,93108.0,0.0301]
[1732574173158,0.053706,93113.0,93108.0,0.0301]
[1732574173358,0.00161207,93118.0,93111.0,0.053707]
[1732574173559,0.01302053,93118.0,93111.0,0.053707]
[1732574173756,0.053705,93116.0,93111.0,0.053707]
[1732574173945,0.37353419,93120.0,93099.0,0.02399399]
[1732574174148,0.053706,93113.0,93109.0,0.053708]
[1732574174548,0.053706,93113.0,93111.0,0.053707]
[1732574174956,0.053706,93113.0,93112.0,9.049e-05]
[1732574175345,0.053706,93113.0,93112.0,0.00344859]
[1732574175553,0.053706,93113.0,93112.0,0.01489374]
[1732574175754,0.37353419,93120.0,93118.0,0.053703]
[1732574176057,0.01273419,93120.0,93119.0,0.01480325]
[1732574176362,0.053706,93113.0,93103.0,0.19218769]
[1732574176556,0.053706,93113.0,93090.0,0.32261644]
[1732574176557,0.053714,93099.0,93090.0,0.11081202]
[1732574176859,0.09453232,93116.0,93098.0,0.19218769]
[1732574177064,0.053703,93118.0,93107.0,0.19261962]
[1732574177252,0.3608,93120.0,93108.0,0.11081202]
[1732574177457,0.3608,93120.0,93119.0,0.053703]
[1732574178549,0.3608,93120.0,93119.0,0.23558778]
[1732574178859,0.3608,93128.0,93119.0,0.50404478]
[1732574179056,0.01268482,93134.0,93132.0,0.053695]
[1732574179250,0.00010605,93137.0,93136.0,0.053693]
[1732574179655,0.00010605,93137.0,93136.0,0.375813]
[1732574180250,0.053686,93148.0,93136.0,0.32212]
[1732574180547,0.3608,93149.0,93134.0,0.053694]
[1732574180548,0.05369,93141.0,93134.0,0.053694]
[1732574180747,0.05369,93141.0,93138.0,0.053691]
[1732574180962,0.05369,93141.0,93133.0,0.01285516]
[1732574180963,0.3608,93149.0,93133.0,0.01285516]
[1732574181158,0.053686,93148.0,93136.0,0.3608]
[1732574181354,0.3608,93149.0,93148.0,0.053686]
[1732574181755,0.414485,93149.0,93145.0,0.235448]
[1732574181958,0.3608,93149.0,93147.0,0.053686]
[1732574182859,0.053683,93154.0,93149.0,0.053685]
[1732574183055,0.053683,93154.0,93146.0,0.0312]
[1732574183371,0.3608,93160.0,93146.0,0.0312]
[1732574183661,0.0027,93177.0,93146.0,0.0312]
[1732574183662,0.0027,93177.0,93152.0,0.3608]
[1732574183849,0.3608,93181.0,93152.0,0.3608]
[1732574183850,0.3608,93181.0,93167.0,0.3608]
[1732574184050,0.3608,93181.0,93179.0,0.053668]
[1732574185051,0.3608,93181.0,93179.0,0.18172]
[1732574185052,0.053667,93180.0,93179.0,0.18172]
[1732574185256,0.053667,93180.0,93179.0,0.235388]
[1732574185654,0.053667,93180.0,93179.0,0.18172]
[1732574186056,0.053673,93171.0,93168.0,7.679e-05]
[1732574186251,0.3608,93172.0,93168.0,7.679e-05]
[1732574186453,0.053673,93170.0,93168.0,7.679e-05]
[1732574187157,0.3608,93169.0,93168.0,7.679e-05]
[1732574187761,0.6828,93169.0,93168.0,1.77e-05]
[1732574188262,0.053685,93149.0,93148.0,0.18168]
[1732574189265,0.053685,93149.0,93148.0,9.515e-05]
[1732574189457,0.05545228,93149.0,93148.0,9.515e-05]
[1732574190957,0.05545228,93149.0,93140.0,0.00161035]
[1732574190958,0.05369,93141.0,93140.0,0.00161035]
[1732574191161,0.41449,93141.0,93140.0,0.00161035]
[1732574191552,0.41625728,93141.0,93140.0,0.00161035]
[1732574191761,0.053697,93129.0,93123.0,0.18168]
[1732574191956,0.36256728,93141.0,93114.0,1.86136]
[1732574191957,0.3608,93124.0,93114.0,1.86136]
[1732574192264,0.0537,93123.0,93121.0,0.053701]
[1732574192561,0.00176728,93122.0,93115.0,0.00013341]
[1732574192760,0.414504,93116.0,93115.0,0.00013341]
[1732574193266,0.053711,93105.0,93104.0,0.00161084]
[1732574193564,0.41627828,93105.0,93104.0,0.00161084]
[1732574194251,0.41627828,93105.0,93104.0,0.00174398]
[1732574195051,0.05547828,93105.0,93104.0,0.00174398]
[1732574195253,0.41627828,93105.0,93104.0,0.00174398]
[1732574197563,0.36256728,93105.0,93104.0,0.00174398]
[1732574197774,0.00176728,93105.0,93104.0,0.32394398]
[1732574197954,0.3608,93126.0,93104.0,0.03454398]
[1732574198155,0.3608,93126.0,93117.0,0.053704]
[1732574198364,0.053703,93119.0,93117.0,0.053704]
[1732574198562,0.3608,93126.0,93110.0,0.11081202]
[1732574198863,0.00161163,93133.0,93132.0,0.053695]
[1732574199059,0.00161163,93133.0,93132.0,0.05382671]
[1732574199263,0.00392003,93133.0,93132.0,0.05382671]
[1732574200060,0.0023084,93133.0,93132.0,0.05382671]
[1732574200961,0.0023084,93133.0,93132.0,0.06644638]
[1732574206369,0.0032435,93133.0,93132.0,0.06644638]
[1732574206855,0.0032435,93133.0,93132.0,0.13194638]
[1732574207661,0.00383582,93133.0,93132.0,0.13194638]
[1732574210365,0.00383582,93133.0,93132.0,0.45406638]
[1732574211962,0.3608,93151.0,93132.0,0.70037138]
[1732574212164,0.3608,93151.0,93150.0,0.053685]
[1732574212361,0.09723232,93169.0,93150.0,0.053685]
[1732574212362,0.3608,93167.0,93165.0,0.053676]
[1732574212962,0.3608,93167.0,93163.0,0.18152]
[1732574213164,0.3608,93167.0,93166.0,0.053676]
[1732574213367,0.3608,93167.0,93166.0,0.05519877]
[1732574213867,0.3608,93167.0,93166.0,0.55871877]
[1732574214070,0.0306,93181.0,93166.0,0.55871877]
[1732574214071,0.3608,93176.0,93175.0,0.05367]
[1732574214468,0.3608,93176.0,93175.0,0.05519277]
[1732574214770,0.3608,93176.0,93175.0,0.00152277]
[1732574214771,0.41447,93176.0,93175.0,0.00152277]
[1732574214972,0.3608,93176.0,93175.0,0.0553108]
[1732574215282,0.3608,93176.0,93175.0,0.0680361]
[1732574215473,0.3608,93176.0,93175.0,0.06651333]
[1732574216673,0.053667,93182.0,93181.0,0.053667]
[1732574216972,0.3608,93185.0,93184.0,0.053665]
[1732574217273,0.05366,93193.0,93184.0,0.235145]
[1732574217476,0.3608,93190.0,93184.0,0.235145]
[1732574217674,0.05366,93193.0,93184.0,0.235145]
[1732574217876,0.3608,93190.0,93184.0,0.235145]
[1732574218266,0.3608,93201.0,93184.0,0.235145]
[1732574218765,0.11266471,93200.0,93184.0,0.235145]
[1732574218971,0.11266471,93200.0,93185.0,9.8e-05]
[1732574219169,0.1,93200.0,93185.0,0.322058]
[1732574219375,0.1,93200.0,93185.0,0.352258]
[1732574219672,0.1,93200.0,93199.0,0.053657]
[1732574219869,0.1,93200.0,93199.0,0.235137]
[1732574220871,0.1,93200.0,93199.0,0.25110886]
[1732574221771,0.1,93200.0,93199.0,0.87298886]
[1732574222279,0.00161017,93216.0,93199.0,1.23378886]
[1732574222477,0.00161017,93216.0,93214.0,0.053648]
[1732574222777,0.053644,93222.0,93215.0,0.18144]
[1732574222975,0.053644,93222.0,93216.0,0.235087]
[1732574223167,0.053644,93222.0,93217.0,0.18151637]
[1732574223368,0.053644,93222.0,93218.0,0.235085]
[1732574223874,0.053644,93222.0,93219.0,0.053645]
[1732574224075,0.3913,93231.0,93218.0,0.19779566]
[1732574224376,0.3608,93219.0,93218.0,0.19779566]
[1732574224576,0.002,93222.0,93218.0,0.25144066]
[1732574224765,0.3608,93219.0,93218.0,0.25144066]
[1732574225479,0.003,93222.0,93219.0,0.053645]
[1732574225687,0.053645,93220.0,93218.0,0.01635566]
[1732574225972,0.3608,93219.0,93181.0,0.01612]
[1732574226178,0.3608,93219.0,93188.0,0.235103]
[1732574226179,0.053659,93194.0,93188.0,0.235103]
[1732574226376,0.053659,93194.0,93191.0,0.18144]
[1732574226568,0.053659,93194.0,93186.0,0.18144]
[1732574226767,0.053659,93194.0,93172.0,0.45096]
[1732574226768,0.3608,93194.0,93177.0,0.053669]
[1732574226967,0.3608,93194.0,93178.0,0.18155025]
[1732574226968,0.053668,93179.0,93178.0,0.18155025]
[1732574227171,0.053668,93179.0,93178.0,0.00011025]
[1732574227475,0.053668,93179.0,93178.0,0.18155025]
[1732574227877,0.3608,93184.0,93183.0,0.053666]
[1732574228076,0.3608,93184.0,93178.0,0.18155025]
[1732574228276,0.3608,93184.0,93178.0,0.00011025]
[1732574228277,0.053668,93180.0,93178.0,0.00011025]
[1732574233080,0.053668,93180.0,93160.0,0.11081202]
[1732574233081,0.053677,93163.0,93156.0,0.02147859]
[1732574233281,0.053682,93155.0,93154.0,1.5006]
[1732574233487,0.053682,93155.0,93138.0,0.3608]
[1732574233488,0.3608,93156.0,93139.0,0.01630793]
[1732574233683,0.3608,93156.0,93131.0,0.00161049]
[1732574233684,0.053693,93137.0,93131.0,0.00161049]
[1732574233878,0.3608,93133.0,93131.0,0.00161049]
[1732574234077,0.3608,93133.0,93132.0,0.00010362]
[1732574234380,0.053704,93118.0,93115.0,0.01605941]
[1732574234573,0.3608,93118.0,93105.0,0.05371]
[1732574234772,0.3608,93139.0,93117.0,0.3608]
[1732574234974,0.031,93147.0,93139.0,0.053691]
[1732574235172,0.031,93147.0,93131.0,0.3608]
[1732574235173,0.05369,93142.0,93138.0,0.18128]
[1732574235474,0.031,93147.0,93138.0,0.18128]
[1732574235872,0.3608,93140.0,93132.0,0.00012729]
[1732574236075,0.18128,93139.0,93110.0,0.11081202]
[1732574236280,0.3608,93130.0,93112.0,0.053706]
[1732574236484,0.3608,93130.0,93114.0,0.01598405]
[1732574236677,0.053702,93122.0,93112.0,0.234986]
[1732574236882,0.3608,93121.0,93112.0,0.053706]
[1732574237091,0.3608,93121.0,93113.0,0.00012707]
[1732574237286,0.3608,93121.0,93107.0,0.18128]
[1732574237583,0.053706,93114.0,93105.0,0.053711]
[1732574237785,0.00147746,93110.0,93106.0,0.05371]
[1732574238283,0.00147746,93110.0,93107.0,8.845e-05]
[1732574238680,0.053709,93108.0,93107.0,8.845e-05]
[1732574239382,0.00147746,93109.0,93107.0,8.845e-05]
[1732574239885,0.00147746,93108.0,93107.0,8.845e-05]
[1732574240583,0.00147746,93108.0,93097.0,0.0162278]
[1732574240584,0.32224,93107.0,93080.0,0.16888824]
[1732574240784,0.32224,93107.0,93083.0,0.01567768]
[1732574240785,0.053717,93094.0,93083.0,0.01567768]
[1732574240978,0.0551449,93094.0,93083.0,0.01567768]
[1732574241179,0.3773849,93094.0,93080.0,0.16618824]
[1732574241385,0.3773849,93094.0,93093.0,0.36093585]
[1732574241583,0.3773849,93094.0,93093.0,0.00013585]
[1732574241894,0.37886236,93094.0,93093.0,0.00013585]
[1732574243586,0.05662236,93094.0,93093.0,0.00013585]
[1732574244087,0.00290536,93094.0,93093.0,0.00013585]
[1732574244874,0.00290536,93094.0,93093.0,0.36093585]
[1732574245077,0.3608,93152.0,93103.0,0.00161053]
[1732574245281,0.3608,93152.0,93140.0,0.16618824]
[1732574245476,0.3608,93152.0,93141.0,0.0001001]
[1732574245679,0.3608,93163.0,93141.0,0.0001001]
[1732574245879,0.053681,93157.0,93147.0,0.053686]
[1732574246085,0.053681,93157.0,93141.0,0.0001001]
[1732574246086,0.05529365,93156.0,93141.0,0.0001001]
[1732574246281,0.05529365,93156.0,93149.0,0.053685]
[1732574246488,0.001477,93153.0,93142.0,0.18136]
[1732574246884,0.001477,93153.0,93152.0,0.053684]
[1732574248194,0.001477,93153.0,93149.0,0.3608]
[1732574248488,0.05529365,93156.0,93149.0,0.3608]
[1732574248691,0.001477,93151.0,93150.0,0.053685]
[1732574248993,0.00161165,93156.0,93155.0,0.053682]
[1732574249480,0.053676,93166.0,93158.0,0.05368]
[1732574249688,0.3608,93160.0,93158.0,0.05368]
[1732574249887,0.00147575,93159.0,93150.0,0.16618824]
[1732574250191,0.00147575,93159.0,93157.0,0.053681]
[1732574250391,0.00147575,93159.0,93158.0,0.0001358]
[1732574252589,0.00147676,93159.0,93158.0,0.0538168]
[1732574252891,0.00147676,93159.0,93136.0,0.053693]
[1732574252892,0.32351676,93159.0,93136.0,0.053693]
[1732574253094,0.3608,93147.0,93132.0,0.00161049]
[1732574253295,0.00147676,93159.0,93139.0,0.053691]
[1732574253296,0.053687,93146.0,93139.0,0.053691]
[1732574253489,0.00147676,93143.0,93139.0,0.053691]
[1732574253791,0.00147676,93143.0,93140.0,0.053691]
[1732574253996,0.00147676,93143.0,93141.0,7.951e-05]
[1732574254198,0.00147676,93143.0,93142.0,1.5]
[1732574255798,0.00147676,93143.0,93142.0,1.68132]
[1732574256892,0.0029528,93143.0,93142.0,1.68132]
[1732574257095,0.0029528,93143.0,93142.0,1.5]
[1732574257784,0.0029528,93143.0,93141.0,7.951e-05]
[1732574257989,0.36227604,93142.0,93141.0,7.951e-05]
[1732574258589,0.3637528,93142.0,93141.0,7.951e-05]
[1732574260205,0.3637528,93142.0,93141.0,0.05376951]
[1732574260401,0.3637528,93142.0,93141.0,7.951e-05]
[1732574261295,0.6858328,93142.0,93141.0,7.951e-05]
[1732574261496,0.053695,93133.0,93132.0,0.00161049]
[1732574261701,0.414495,93133.0,93132.0,0.00161049]
[1732574261996,0.414495,93133.0,93119.0,0.0027]
[1732574261997,0.68439604,93133.0,93119.0,0.0027]
[1732574262204,0.00147604,93133.0,93132.0,0.053696]
[1732574262594,0.0029528,93133.0,93132.0,0.05382456]
[1732574262797,0.0029528,93133.0,93132.0,0.00012856]
[1732574263100,0.01322497,93133.0,93132.0,0.00012856]
[1732574263696,0.01322497,93133.0,93119.0,0.01876255]
[1732574263697,0.053702,93120.0,93119.0,0.0027]
[1732574263904,0.053704,93117.0,93116.0,0.01609303]
[1732574264096,0.01201475,93117.0,93113.0,0.18116]
[1732574264403,0.053706,93114.0,93113.0,0.18116]
[1732574264604,0.01053922,93114.0,93113.0,0.00010797]
[1732574265200,0.01349151,93114.0,93113.0,0.00010797]
[1732574267212,0.51685151,93114.0,93113.0,0.00010797]
[1732574267506,0.053712,93104.0,93101.0,0.0027]
[1732574267804,0.053712,93104.0,93092.0,0.015864]
[1732574267805,0.73822876,93104.0,93092.0,0.015864]
[1732574267999,0.73822876,93104.0,93095.0,0.053716]
[1732574268205,0.74118105,93104.0,93095.0,0.053716]
[1732574268503,0.74118105,93104.0,93103.0,0.00174472]
[1732574269005,0.41894105,93104.0,93103.0,0.00174472]
[1732574270301,0.41894105,93104.0,93090.0,0.05642]
[1732574270302,0.053719,93092.0,93090.0,0.05642]
[1732574270509,0.053719,93092.0,93090.0,0.05372]
[1732574270702,0.00531306,93091.0,93090.0,0.05372]
[1732574271010,0.0143542,93091.0,93090.0,0.05372]
[1732574271210,0.0143542,93091.0,93090.0,0.05381333]
[1732574271409,0.0143542,93091.0,93090.0,9.333e-05]
[1732574271611,0.0680732,93091.0,93090.0,9.333e-05]
[1732574272007,0.05903206,93091.0,93090.0,9.333e-05]
[1732574272402,0.41983206,93091.0,93090.0,9.333e-05]
[1732574273117,0.42042487,93091.0,93090.0,9.333e-05]
[1732574274207,0.43678712,93091.0,93090.0,9.333e-05]
[1732574277112,0.42042487,93091.0,93090.0,9.333e-05]
[1732574277610,0.42042487,93091.0,93090.0,0.01615709]
[1732574278509,0.42042487,93091.0,93090.0,9.333e-05]
[1732574280609,0.42131145,93091.0,93090.0,9.333e-05]
[1732574281606,0.74359145,93091.0,93090.0,9.333e-05]
[1732574282110,0.42131145,93091.0,93090.0,9.333e-05]
[1732574282312,0.053726,93079.0,93078.0,0.0327]
[1732574282511,0.41984169,93079.0,93078.0,0.03]
[1732574282711,0.42131845,93079.0,93078.0,0.03]
[1732574283223,0.43036619,93079.0,93078.0,0.03008673]
[1732574283618,0.43036619,93079.0,93078.0,0.00233398]
[1732574284110,0.42131845,93079.0,93078.0,0.00233398]
[1732574284815,0.43829929,93079.0,93078.0,0.00233398]
[1732574286916,0.76061929,93079.0,93078.0,9.8e-07]
[1732574287116,0.053732,93070.0,93065.0,0.0027]
[1732574287328,0.053732,93070.0,93060.0,0.2]
[1732574287329,0.414532,93070.0,93060.0,0.2]
[1732574287625,0.736852,93070.0,93060.0,0.2]
[1732574287813,0.414537,93061.0,93060.0,0.2]
[1732574288121,0.414537,93061.0,93060.0,0.20010183]
[1732574288708,0.73837376,93061.0,93060.0,0.20010183]
[1732574288914,0.42191985,93061.0,93060.0,0.20010183]
[1732574289222,0.43191985,93061.0,93060.0,0.20010183]
[1732574289520,0.43191985,93061.0,93047.0,0.0027]
[1732574289521,0.053743,93051.0,93047.0,0.0027]
[1732574289818,0.41601976,93051.0,93037.0,0.0027]
[1732574290121,0.42192585,93051.0,93046.0,0.053746]
[1732574290325,0.42192585,93051.0,93050.0,0.3164665]
[1732574291421,0.42192585,93051.0,93050.0,0.30009746]
[1732574292822,0.74432585,93051.0,93050.0,0.30009746]
[1732574293013,0.75998842,93051.0,93050.0,0.30009746]
[1732574293216,0.75998842,93051.0,93050.0,9.746e-05]
[1732574293618,0.43758842,93051.0,93050.0,9.746e-05]
[1732574295024,0.53166687,93051.0,93050.0,9.746e-05]
[1732574295227,0.75998842,93051.0,93050.0,9.746e-05]
[1732574295727,0.75998842,93051.0,93050.0,0.05384046]
[1732574295728,0.38384542,93051.0,93050.0,0.05384046]
[1732574296024,0.38384542,93051.0,93037.0,0.0027]
[1732574296025,0.70624542,93051.0,93037.0,0.0027]
[1732574296225,0.70624542,93051.0,93034.0,0.07160319]
[1732574296226,0.3608,93038.0,93034.0,0.07160319]
[1732574296432,0.02574188,93037.0,93034.0,0.07160319]
[1732574296619,0.3608,93035.0,93034.0,0.07160319]
[1732574296925,0.40392473,93035.0,93034.0,0.07160319]
[1732574297145,0.72640473,93035.0,93034.0,0.01391849]
[1732574297424,0.72640473,93035.0,92995.0,0.01629647]
[1732574297425,0.01,93009.0,92995.0,0.01629647]
[1732574297621,0.71013128,93035.0,93004.0,0.05377]
[1732574297622,0.3608,93005.0,93004.0,0.05377]
[1732574297827,0.38842666,93005.0,93000.0,0.48415848]
[1732574298026,0.3608,93001.0,93000.0,0.48415848]
[1732574298326,0.3608,93001.0,92960.0,0.02151]
[1732574298327,0.01,93000.0,92960.0,0.02151]
[1732574298624,0.01,93000.0,92981.0,0.053783]
[1732574298625,0.3608,92982.0,92981.0,0.053783]
[1732574298826,0.38569544,92982.0,92964.0,0.18116]
[1732574299031,0.02489544,92981.0,92980.0,0.04787691]
[1732574299230,0.00957517,92981.0,92980.0,0.04787691]
[1732574299730,0.01,93000.0,92999.0,0.053772]
[1732574300121,0.02519664,93000.0,92999.0,0.053772]
[1732574300921,0.02519664,93000.0,92975.0,0.4516]
[1732574300922,1.19144864,93000.0,92955.0,0.25308923]
[1732574301121,1.19144864,93000.0,92938.0,0.38069292]
[1732574301122,0.7216,92973.0,92940.0,0.11081558]
[1732574301321,0.7216,92973.0,92938.0,0.00541406]
[1732574301322,0.3608,92973.0,92971.0,0.053789]
[1732574301530,0.3608,92991.0,92981.0,0.053783]
[1732574301722,0.01,93000.0,92990.0,0.053778]
[1732574301919,0.01,93000.0,92999.0,0.053772]
[1732574302119,0.01,93000.0,92999.0,0.05389251]
[1732574302322,0.3608,93020.0,93013.0,0.053764]
[1732574302529,0.3608,93020.0,93014.0,0.1812]
[1732574302733,0.3608,93020.0,93014.0,1.5]
[1732574303722,0.3608,93020.0,93011.0,0.1812]
[1732574303924,0.0016144,93024.0,93012.0,0.3608]
[1732574304130,0.0178788,93024.0,93013.0,1.5]
[1732574304436,0.0016144,93024.0,93014.0,0.053763]
[1732574304655,0.0016144,93024.0,93013.0,1.50056]
[1732574304934,0.3608,93019.0,93013.0,1.5]
[1732574305132,0.3608,93019.0,93010.0,0.11081558]
[1732574305332,0.3608,93019.0,93008.0,0.053767]
[1732574305639,0.3608,93010.0,93009.0,1.5]
[1732574305838,0.3608,93022.0,93012.0,0.053765]
[1732574306133,0.3608,93013.0,93009.0,1.50056]
[1732574306335,0.3608,93013.0,93004.0,0.053769]
[1732574306936,0.3608,93013.0,93005.0,0.1876]
[1732574307528,0.32256,93012.0,93000.0,0.01642343]
[1732574307729,0.414571,93001.0,92999.0,0.00012051]
[1732574307933,0.3608,93001.0,92999.0,0.00012051]
[1732574309535,0.415365,93012.0,92999.0,0.00012051]
[1732574309737,0.3608,93012.0,93003.0,0.05377]
[1732574310037,0.37669805,93012.0,92999.0,0.00012051]
[1732574310236,0.053772,93001.0,92999.0,0.00012051]
[1732574310434,0.3226,93000.0,92999.0,0.00012051]
[1732574310633,0.3608,93004.0,92999.0,0.00012051]
[1732574312739,0.36156,93012.0,93003.0,0.3608]
[1732574312935,0.3608,93004.0,92999.0,0.00012051]
[1732574313127,0.3608,93004.0,93002.0,0.05377]
[1732574313336,0.3608,93012.0,93001.0,0.1876]
[1732574313635,0.3608,93012.0,93005.0,0.053768]
[1732574313832,0.3608,93012.0,93001.0,0.1876]
[1732574314532,0.3608,93012.0,93004.0,0.414569]
[1732574314836,0.3608,93012.0,93004.0,0.3608]
[1732574315035,0.0016144,93024.0,93011.0,0.053765]
[1732574315431,0.3608,93021.0,93011.0,0.053765]
[1732574316239,0.05376,93020.0,93011.0,0.053765]
[1732574316533,0.3608,93021.0,93018.0,0.053761]
[1732574316736,0.3608,93021.0,93019.0,1.5317]
[1732574317142,0.3608,93021.0,93019.0,0.0317]
[1732574317343,0.41456,93021.0,93019.0,0.0317]
[1732574317730,0.41456,93021.0,93019.0,1.5317]
[1732574318544,0.41456,93021.0,93020.0,0.1876]
[1732574319839,0.3608,93021.0,93020.0,0.1876]
[1732574320340,0.3608,93021.0,93020.0,0.20360015]
[1732574320543,0.053759,93023.0,93020.0,0.20360015]
[1732574321047,0.05376,93020.0,93018.0,0.00056]
[1732574321339,0.05376,93020.0,93012.0,0.00012831]
[1732574321340,0.3608,93023.0,93012.0,0.00012831]
[1732574321540,0.053764,93013.0,93012.0,0.00012831]
[1732574321742,0.00076,93023.0,93013.0,0.32252]
[1732574321940,0.3608,93035.0,93013.0,0.32252]
[1732574321941,0.3608,93035.0,93022.0,0.3608]
[1732574322240,0.3608,93035.0,93027.0,0.053756]
[1732574322433,0.3608,93035.0,93023.0,1.50056]
[1732574322632,0.053754,93031.0,93029.0,0.053755]
[1732574323032,0.3608,93035.0,93023.0,1.50056]
[1732574323242,0.3608,93035.0,93014.0,0.3608]
[1732574323538,0.3608,93026.0,93010.0,0.3608]
[1732574323844,0.053764,93014.0,93012.0,0.05389331]
[1732574324034,0.3608,93026.0,93012.0,0.00012831]
[1732574324035,0.05376,93020.0,93012.0,0.00012831]
[1732574324236,0.3608,93026.0,93012.0,0.00012831]
[1732574324544,0.3608,93026.0,93012.0,0.05389331]
[1732574324545,0.053764,93014.0,93012.0,0.05389331]
[1732574324941,0.053764,93014.0,93012.0,0.00012831]
[1732574325331,0.053764,93014.0,93012.0,0.05389231]
[1732574326144,0.09398007,93021.0,93013.0,0.1952]
[1732574326441,0.09398007,93021.0,93012.0,0.00012831]
[1732574326442,0.3608,93016.0,93012.0,0.00012831]
[1732574326640,0.053764,93014.0,93012.0,0.00012831]
[1732574327159,0.14790316,93014.0,93012.0,0.00012831]
[1732574327345,0.053764,93014.0,93012.0,0.00012831]
[1732574328744,0.12554714,93013.0,93012.0,0.00012831]
[1732574329053,0.053772,93000.0,92994.0,0.053775]
[1732574329340,0.414572,93000.0,92997.0,0.053773]
[1732574329734,0.414572,93000.0,92997.0,0.06971615]
[1732574329938,0.50872851,93000.0,92998.0,0.053773]
[1732574330148,0.414572,93000.0,92999.0,0.00171386]
[1732574331244,0.50877286,93000.0,92999.0,0.00171386]
[1732574331445,0.414572,93000.0,92999.0,0.00171386]
[1732574331747,0.775372,93000.0,92999.0,0.00171386]
[1732574332250,0.73745962,93000.0,92984.0,0.01617768]
[1732574332444,0.053783,92981.0,92976.0,0.053785]
[1732574332747,0.053786,92977.0,92970.0,0.11081558]
[1732574332945,0.053786,92977.0,92975.0,0.053786]
[1732574333144,0.3608,92979.0,92977.0,0.053785]
[1732574333449,0.414584,92979.0,92978.0,0.00012102]
[1732574333644,0.053784,92979.0,92978.0,0.00012102]
[1732574334747,0.06295815,92979.0,92978.0,0.00012102]
[1732574334945,0.06295815,92979.0,92978.0,0.05390602]
[1732574335141,0.00917415,92979.0,92978.0,0.05390602]
[1732574335545,0.99261415,92979.0,92954.0,0.0027]
[1732574335744,0.99261415,92979.0,92937.0,0.4077256]
[1732574335745,0.45483225,92955.0,92944.0,0.00018511]
[1732574336049,0.09403225,92951.0,92944.0,0.00018511]
[1732574336254,0.3608,92955.0,92951.0,0.0538]
[1732574336551,0.05527816,92953.0,92952.0,0.00011251]
[1732574336844,0.00147916,92953.0,92952.0,0.00011251]
[1732574337250,0.053803,92946.0,92944.0,0.0164195]
[1732574337547,0.36227916,92945.0,92944.0,0.00018511]
[1732574338145,0.36227916,92945.0,92930.0,0.00134058]
[1732574338146,0.053808,92938.0,92930.0,0.00134058]
[1732574338341,0.053808,92938.0,92937.0,0.08791637]
[1732574338644,0.053808,92938.0,92922.0,0.00132784]
[1732574338645,0.053816,92923.0,92922.0,0.00132784]
[1732574339349,0.053816,92923.0,92900.0,0.1]
[1732574339350,0.053826,92907.0,92902.0,0.19532]
[1732574339546,0.053826,92907.0,92900.0,0.1]
[1732574339547,0.05530516,92907.0,92900.0,0.1]
[1732574339755,0.053829,92902.0,92901.0,8.717e-05]
[1732574340051,0.053839,92884.0,92883.0,0.02154184]
[1732574340241,0.053848,92869.0,92865.0,0.3608]
[1732574340443,0.053848,92869.0,92844.0,0.31991644]
[1732574340444,0.053862,92846.0,92836.0,0.3608]
[1732574340656,0.3608,92837.0,92817.0,0.3608]
[1732574340850,0.3608,92829.0,92800.0,0.21081558]
[1732574341042,0.3608,92820.0,92804.0,0.00012025]
[1732574341243,0.053883,92809.0,92804.0,0.00012025]
[1732574341443,0.3608,92809.0,92800.0,0.1]
[1732574341644,0.3608,92801.0,92778.0,0.07518939]
[1732574341845,0.00147916,92805.0,92751.0,0.3608]
[1732574341846,0.3608,92779.0,92751.0,0.3608]
[1732574342051,0.3608,92779.0,92738.0,0.3608]
[1732574342052,0.11081558,92770.0,92738.0,0.3608]
[1732574342345,0.68424,92756.0,92738.0,0.3608]
[1732574342553,0.68424,92756.0,92722.0,0.3608]
[1732574342554,0.3608,92745.0,92730.0,0.3608]
[1732574342752,0.3608,92731.0,92704.0,0.3608]
[1732574343056,0.3608,92719.0,92704.0,0.3608]
[1732574343249,0.01,92711.0,92685.0,0.3608]
[1732574343555,0.3608,92701.0,92700.0,0.08882198]
[1732574343745,0.99591916,92701.0,92700.0,0.08882198]
[1732574343944,1.19647916,92701.0,92676.0,0.01643636]
[1732574344153,0.7216,92677.0,92676.0,0.01643636]
[1732574344354,0.7216,92677.0,92666.0,0.00161862]